fUSD/lending_fUSD_20250628
["ID","MTS","AMOUNT","RATE_DAILY","PERIOD"]
[368248985,1751071887255,-490.0,0.00046301,60]
[368248986,1751071887265,-564.31,0.00046301,60]
[368248987,1751071887274,-960.84,0.00046301,60]
[368248988,1751071887284,-544.38,0.00046301,60]
[368248989,1751071887389,-819.67,0.00046301,60]
[368248990,1751071887409,-548.79,0.00046301,60]
[368248991,1751071887419,-490.0,0.00046301,60]
[368248992,1751071887429,-490.0,0.00046301,60]
[368248993,1751071887439,-490.0,0.00046301,60]
[368248994,1751071887449,-877.78,0.00046301,60]
[368248995,1751071887459,-519.68,0.00046301,60]
[368248996,1751071887468,-499.03,0.00046301,60]
[368248997,1751071887479,-1100.02,0.00046301,60]
[368248998,1751071887490,-1040.49,0.00046301,60]
[368248999,1751071887500,-942.77,0.00046301,60]
[368249000,1751071887510,-953.56,0.00046301,60]
[368249001,1751071887520,-1086.04,0.00046301,60]
[368249002,1751071887531,-490.0,0.00046301,60]
[368249003,1751071887542,-6952.88,0.00046301,60]
[368249004,1751071887552,-531.35,0.00046301,60]
[368249005,1751071887562,-1825.19,0.00046301,60]
[368249006,1751071887572,-551.06,0.00046301,60]
[368249007,1751071887581,-1040.65,0.00046301,60]
[368249008,1751071887591,-551.92,0.00046301,60]
[368249009,1751071887600,-1592.1,0.00046301,60]
[368249010,1751071887611,-990.34,0.00046301,60]
[368249011,1751071887621,-490.0,0.00046301,60]
[368249012,1751071887631,-511.18,0.00046301,60]
[368249013,1751071887640,-660.58,0.00046301,60]
[368249014,1751071887650,-899.19,0.00046301,60]
[368249015,1751071887659,-288.89,0.00046301,60]
[368249016,1751071887669,-554.3,0.00046301,60]
[368249017,1751071887679,-548.05,0.00046301,60]
[368249018,1751071887689,-490.0,0.00046301,60]
[368249019,1751071887698,-490.0,0.00046301,60]
[368249020,1751071887708,-490.0,0.00046301,60]
[368249021,1751071887717,-490.0,0.00046301,60]
[368249022,1751071887726,-116331.36,0.00046301,60]
[368249023,1751071887735,-490.0,0.00046301,60]
[368249024,1751071887746,-896.07,0.00046301,60]
[368249025,1751071887756,-774.82,0.00046301,60]
[368249026,1751071887766,-1205.17,0.00046301,60]
[368249027,1751071887776,-787.73,0.00046301,60]
[368249028,1751071887786,-1755.56,0.00046301,60]
[368249029,1751071887795,-490.0,0.00046301,60]
[368249030,1751071887804,-617.23122484,0.00046301,60]
[368249031,1751071887814,-1776.88,0.00046301,60]
[368249032,1751071887823,-497.76,0.00046301,60]
[368249033,1751071887831,-490.0,0.00046301,60]
[368249034,1751071887841,-490.0,0.00046301,60]
[368249035,1751071887850,-850.04,0.00046301,60]
[368249036,1751071887860,-490.0,0.00046301,60]
[368249037,1751071887869,-1470.22,0.00046301,60]
[368249038,1751071887878,-547.95,0.00046301,60]
[368249039,1751071887888,-490.0,0.00046301,60]
[368249040,1751071887897,-906.79,0.00046301,60]
[368249041,1751071887907,-656.99,0.00046301,60]
[368249042,1751071887916,-448.63,0.00046301,60]
[368249043,1751071887925,-561.17,0.00046301,60]
[368249044,1751071887934,-532.35,0.00046301,60]
[368249045,1751071887944,-2168.75,0.00046301,60]
[368249046,1751071887953,-1280.03,0.00046301,60]
[368249047,1751071887963,-490.0,0.00046301,60]
[368249048,1751071887972,-490.0,0.00046301,60]
[368249049,1751071887982,-558.63,0.00046301,60]
[368249050,1751071887991,-923.38,0.00046301,60]
[368249051,1751071888002,-490.0,0.00046301,60]
[368249052,1751071888013,-1132.38,0.00046301,60]
[368249053,1751071888024,-490.0,0.00046301,60]
[368249054,1751071888034,-681.77,0.00046301,60]
[368249055,1751071888044,-490.0,0.00046301,60]
[368249056,1751071888055,-397.88,0.00046301,60]
[368249057,1751071888065,-1998.82,0.00046301,60]
[368249058,1751071888073,-668.11,0.00046301,60]
[368249059,1751071888082,-716.54,0.00046301,60]
[368249060,1751071888092,-633.4,0.00046301,60]
[368249061,1751071888101,-490.0,0.00046301,60]
[368249062,1751071888110,-1819.64,0.00046301,60]
[368249063,1751071888119,-878.36,0.00046301,60]
[368249064,1751071888128,-4317.58335926,0.00046301,60]
[368249065,1751071888647,-490.0,0.00044109,60]
[368249066,1751071888657,-45.2155402,0.00046301,60]
[368249067,1751071888668,-338.09110054,0.00046301,60]
[368249068,1751071888677,-17.32389946,0.00046301,60]
[368249069,1751071890061,-200.0,0.00043834,60]
[368249070,1751071890071,-407.64729586,0.00043835,60]
[368249071,1751071890164,-82.35270414,0.00043835,60]
[368249072,1751071890174,-391.31164812,0.00043835,60]
[368249073,1751071890185,-98.68835188,0.00043835,60]
[368249074,1751071890195,-490.0,0.00043835,60]
[368249075,1751071890206,-490.0,0.00043835,60]
[368249076,1751071890216,-490.0,0.00043835,60]
[368249077,1751071890227,-490.0,0.00043835,60]
[368249078,1751071890236,-490.0,0.00043835,60]
[368249079,1751071890246,-490.0,0.00043835,60]
[368249080,1751071890256,-490.0,0.00043835,60]
[368249081,1751071890265,-490.0,0.00043835,60]
[368249082,1751071890275,-490.0,0.00043835,60]
[368249083,1751071890284,-500.0,0.00043835,60]
[368249084,1751071890294,-490.0,0.00043835,60]
[368249085,1751071890304,-1582.33041,0.00043835,20]
[368249086,1751071890314,-500.0,0.00043835,60]
[368249087,1751071890325,-504.32197462,0.00043835,60]
[368249088,1751071890335,-490.0,0.00043835,60]
[368249089,1751071890345,-490.0,0.00043835,60]
[368249090,1751071890356,-490.0,0.00044109,60]
[368249091,1751071890366,-392.64,0.00044109,60]
[368249092,1751071890376,-490.0,0.00044109,60]
[368249093,1751071890386,-490.0,0.00044109,60]
[368249094,1751071890395,-204.24,0.00044109,60]
[368249095,1751071890404,-490.0,0.00044109,60]
[368249096,1751071890414,-490.0,0.00044109,60]
[368249097,1751071890423,-490.0,0.00044109,60]
[368249098,1751071890433,-490.0,0.00044383,60]
[368249099,1751071890443,-490.0,0.00044383,60]
[368249100,1751071890454,-490.0,0.00044657,60]
[368249101,1751071890464,-490.0,0.00044657,60]
[368249102,1751071890474,-490.0,0.00044931,60]
[368249103,1751071890484,-490.0,0.00044931,60]
[368249104,1751071890495,-419.8,0.00045205,60]
[368249105,1751071890505,-490.0,0.00045205,60]
[368249106,1751071890515,-490.0,0.00045205,60]
[368249107,1751071890525,-490.0,0.00045479,60]
[368249108,1751071890535,-490.0,0.00045479,60]
[368249109,1751071890544,-490.0,0.00045753,60]
[368249110,1751071890554,-490.0,0.00045753,60]
[368249111,1751071890563,-1582.33042,0.00045835,20]
[368249112,1751071890573,-490.0,0.00046027,60]
[368249113,1751071890582,-490.0,0.00046027,60]
[368249114,1751071890592,-472.67610054,0.00046301,60]
[368249115,1751071890601,-865.33,0.00046301,60]
[368249116,1751071890610,-742.7,0.00046301,60]
[368249117,1751071890620,-490.0,0.00046301,60]
[368249118,1751071890629,-490.0,0.00046301,60]
[368249119,1751071890639,-645.35,0.00046301,60]
[368249120,1751071890648,-634.14,0.00046301,60]
[368249121,1751071890657,-1740.41,0.00046301,60]
[368249122,1751071890667,-490.0,0.00046301,60]
[368249123,1751071890676,-1968.42,0.00046301,14]
[368249124,1751071890685,-513.85,0.00046301,60]
[368249125,1751071890695,-490.0,0.00046301,60]
[368249126,1751071890704,-2452.13,0.00046301,60]
[368249127,1751071890713,-654.89,0.00046301,60]
[368249128,1751071890722,-763.1,0.00046301,60]
[368249129,1751071890732,-573.87,0.00046301,60]
[368249130,1751071890742,-948.87,0.00046301,60]
[368249131,1751071890751,-544.35525537,0.00046301,60]
[368249132,1751071890760,-538.32,0.00046301,60]
[368249133,1751071890769,-490.0,0.00046301,60]
[368249134,1751071890778,-492.97,0.00046301,60]
[368249135,1751071890787,-722.82,0.00046301,60]
[368249136,1751071891004,-490.0,0.00046301,60]
[368249137,1751071891015,-742.09,0.00046301,60]
[368249138,1751071891025,-1684.21,0.00046301,60]
[368249139,1751071891035,-485.65,0.00046301,60]
[368249140,1751071891045,-1592.37,0.00046301,60]
[368249141,1751071891057,-520.76,0.00046301,60]
[368249142,1751071891066,-603.55339414,0.00046301,60]
[368249143,1751071891076,-490.0,0.00046301,60]
[368249144,1751071891085,-1085.58,0.00046301,60]
[368249145,1751071891095,-592.17,0.00046301,60]
[368249146,1751071891104,-717.14,0.00046301,60]
[368249147,1751071891116,-2828.04,0.00046301,60]
[368249148,1751071891126,-588.68,0.00046301,60]
[368249149,1751071891136,-490.0,0.00046301,60]
[368249150,1751071891146,-2351.28,0.00046301,60]
[368249151,1751071891156,-490.0,0.00046301,60]
[368249152,1751071891166,-1128.63,0.00046301,60]
[368249153,1751071891175,-1000.0,0.00046301,60]
[368249154,1751071891184,-490.0,0.00046301,60]
[368249155,1751071891193,-490.0,0.00046301,60]
[368249156,1751071891203,-490.0,0.00046301,60]
[368249157,1751071891216,-150.0,0.00046302,2]
[368249158,1751071891226,-168.0,0.00046327,2]
[368249159,1751071891235,-500.0,0.00046353,60]
[368249160,1751071891246,-500.0,0.00046353,60]
[368249161,1751071891255,-500.0,0.00046353,60]
[368249162,1751071891267,-150.0,0.00046353,60]
[368249163,1751071891277,-157.95002937,0.00046353,60]
[368249164,1751071891287,-500.0,0.00046353,60]
[368249165,1751071891296,-203.81335211,0.00046353,60]
[368249166,1751071891305,-150.0,0.00046353,60]
[368249167,1751071891314,-500.0,0.00046353,60]
[368249168,1751071891323,-500.0,0.00046353,60]
[368249169,1751071891332,-150.37996106,0.00046353,60]
[368249170,1751071891342,-150.0,0.00046353,60]
[368249171,1751071891351,-500.0,0.00046353,60]
[368249172,1751071891360,-500.0,0.00046353,60]
[368249173,1751071891369,-150.0,0.00046353,60]
[368249174,1751071891379,-500.0,0.00046353,60]
[368249175,1751071891388,-150.0,0.00046353,60]
[368249176,1751071891397,-564.0,0.00046353,60]
[368249177,1751071891407,-500.0,0.00046353,60]
[368249178,1751071891416,-500.0,0.00046353,60]
[368249179,1751071891425,-500.0,0.00046353,60]
[368249180,1751071891435,-500.0,0.00046353,60]
[368249181,1751071891445,-151.85874696,0.00046353,60]
[368249182,1751071891455,-500.0,0.00046353,60]
[368249183,1751071891465,-500.0,0.00046353,60]
[368249184,1751071891475,-500.0,0.00046353,60]
[368249185,1751071891486,-500.0,0.00046353,60]
[368249186,1751071891497,-150.0,0.00046353,60]
[368249187,1751071891507,-500.0,0.00046353,60]
[368249188,1751071891517,-500.0,0.00046353,60]
[368249189,1751071891527,-500.0,0.00046353,60]
[368249190,1751071891536,-500.0,0.00046353,60]
[368249191,1751071891546,-150.0,0.00046353,2]
[368249192,1751071891556,-500.0,0.00046353,60]
[368249193,1751071891565,-1000.0,0.00046364,14]
[368249194,1751071891575,-150.0,0.00046375,2]
[368249195,1751071891585,-150.0,0.00046392,2]
[368249196,1751071891595,-150.0,0.00046395,2]
[368249197,1751071891605,-1000.0,0.000464,7]
[368249198,1751071891614,-150.0,0.0004641,2]
[368249199,1751071891624,-150.0,0.0004643,2]
[368249200,1751071891634,-150.0,0.00046435,2]
[368249201,1751071891644,-150.0,0.00046445,2]
[368249202,1751071891654,-200.0,0.00046449,120]
[368249203,1751071891664,-150.0,0.00046455,2]
[368249204,1751071891673,-9785.18177869,0.00046475,15]
[368249205,1751071891683,-150.0,0.00046482,2]
[368249206,1751071891693,-150.0,0.00046499,14]
[368249207,1751071891702,-150.0,0.000465,102]
[368249208,1751071891711,-150.0,0.00046503,2]
[368249209,1751071891721,-150.0,0.00046511,2]
[368249210,1751071891730,-9247.13420291,0.00046511,2]
[368249211,1751071891740,-7251.54816732,0.00046575,31]
[368249212,1751071891749,-490.0,0.00046575,60]
[368249213,1751071891758,-490.0,0.00046575,60]
[368249214,1751071891768,-490.0,0.00046575,60]
[368249215,1751071891778,-490.0,0.00046575,60]
[368249216,1751071891787,-490.0,0.00046575,60]
[368249217,1751071891797,-463.12549864,0.00046575,60]
[368249218,1751071891806,-490.0,0.00046575,60]
[368249219,1751071891816,-632.98,0.00046575,60]
[368249220,1751071891825,-594.52,0.00046575,60]
[368249221,1751071891834,-490.0,0.00046575,60]
[368249222,1751071891844,-321.06816602,0.00046575,60]
[368249223,1751071891853,-490.0,0.00046575,60]
[368249224,1751071891862,-553.58,0.00046575,60]
[368249225,1751071891872,-508.58,0.00046575,60]
[368249226,1751071891882,-490.0,0.00046575,60]
[368249227,1751071891891,-490.0,0.00046575,60]
[368249228,1751071891901,-490.0,0.00046575,60]
[368249229,1751071891910,-490.0,0.00046575,60]
[368249230,1751071891919,-490.0,0.00046575,60]
[368249231,1751071891928,-656.12,0.00046575,2]
[368249232,1751071891938,-490.0,0.00046575,60]
[368249233,1751071891947,-490.0,0.00046575,60]
[368249234,1751071891957,-490.0,0.00046575,60]
[368249235,1751071891966,-687.24,0.00046575,60]
[368249236,1751071891976,-523.14985498,0.00046575,60]
[368249237,1751071891986,-490.0,0.00046575,60]
[368249238,1751071891995,-490.0,0.00046575,60]
[368249239,1751071892005,-490.0,0.00046575,60]
[368249240,1751071892015,-490.0,0.00046575,60]
[368249241,1751071892023,-490.0,0.00046575,60]
[368249242,1751071892032,-490.0,0.00046575,60]
[368249243,1751071892041,-1241.16,0.00046575,60]
[368249244,1751071892050,-490.0,0.00046575,60]
[368249245,1751071892059,-779.72,0.00046575,60]
[368249246,1751071892068,-490.0,0.00046575,60]
[368249247,1751071892077,-597.71,0.00046575,60]
[368249248,1751071892086,-490.0,0.00046575,60]
[368249249,1751071892094,-490.0,0.00046575,60]
[368249250,1751071892104,-156.106223,0.00046575,60]
[368249251,1751071892113,-696.1,0.00046575,60]
[368249252,1751071892123,-522.63298249,0.00046575,60]
[368249253,1751071892132,-490.0,0.00046575,60]
[368249254,1751071892142,-154.28143,0.00046575,60]
[368249255,1751071892151,-490.0,0.00046575,60]
[368249256,1751071892160,-292.26,0.00046575,60]
[368249257,1751071892170,-490.0,0.00046575,60]
[368249258,1751071892179,-490.0,0.00046575,60]
[368249259,1751071892188,-490.0,0.00046575,60]
[368249260,1751071892197,-179.564808,0.00046575,60]
[368249261,1751071892209,-721.73,0.00046575,60]
[368249262,1751071892218,-490.0,0.00046575,60]
[368249263,1751071892228,-490.0,0.00046575,60]
[368249264,1751071892237,-490.0,0.00046575,60]
[368249265,1751071892361,-490.0,0.00046575,60]
[368249266,1751071892372,-568.58,0.00046575,60]
[368249267,1751071892382,-376.04339579,0.00046575,60]
[368249268,1751071892391,-490.0,0.00046575,60]
[368249269,1751071892401,-958.32,0.00046575,60]
[368249270,1751071892410,-490.0,0.00046575,60]
[368249271,1751071892419,-490.0,0.00046575,60]
[368249272,1751071892428,-490.0,0.00046575,60]
[368249273,1751071892438,-507.37,0.00046575,60]
[368249274,1751071892447,-490.0,0.00046575,60]
[368249275,1751071892456,-490.0,0.00046575,60]
[368249276,1751071892466,-743.38,0.00046575,60]
[368249277,1751071892475,-526.08,0.00046575,60]
[368249278,1751071892485,-490.0,0.00046575,60]
[368249279,1751071892496,-1492.54,0.00046575,60]
[368249280,1751071892506,-519.17,0.00046575,60]
[368249281,1751071892515,-490.0,0.00046575,60]
[368249282,1751071892525,-490.0,0.00046575,60]
[368249283,1751071892535,-490.0,0.00046575,60]
[368249284,1751071892544,-490.0,0.00046575,60]
[368249285,1751071892554,-208.2,0.00046575,60]
[368249286,1751071892564,-490.0,0.00046575,60]
[368249287,1751071892573,-490.0,0.00046575,60]
[368249288,1751071892584,-490.0,0.00046575,60]
[368249289,1751071892593,-490.0,0.00046575,60]
[368249290,1751071892603,-490.0,0.00046575,60]
[368249291,1751071892612,-570.52,0.00046575,60]
[368249292,1751071892622,-165.936069,0.00046575,60]
[368249293,1751071892631,-666.63,0.00046575,60]
[368249294,1751071892641,-920.83,0.00046575,60]
[368249295,1751071892651,-490.0,0.00046575,60]
[368249296,1751071892660,-1154.84,0.00046575,60]
[368249297,1751071892670,-490.0,0.00046575,60]
[368249298,1751071892679,-733.75,0.00046575,60]
[368249299,1751071892688,-519.13,0.00046575,60]
[368249300,1751071892697,-301.23,0.00046575,60]
[368249301,1751071892707,-490.0,0.00046575,60]
[368249302,1751071892716,-490.0,0.00046575,60]
[368249303,1751071892725,-526.74,0.00046575,60]
[368249304,1751071892735,-513.84,0.00046575,60]
[368249305,1751071892744,-555.78,0.00046575,60]
[368249306,1751071892753,-490.0,0.00046575,60]
[368249307,1751071892762,-490.0,0.00046575,60]
[368249308,1751071892771,-858.82,0.00046575,60]
[368249309,1751071892781,-490.0,0.00046575,60]
[368249310,1751071892791,-744.08,0.00046575,60]
[368249311,1751071892800,-490.0,0.00046575,60]
[368249312,1751071892810,-1463.6,0.00046575,60]
[368249313,1751071892821,-504.68,0.00046575,60]
[368249314,1751071892830,-490.0,0.00046575,60]
[368249315,1751071892839,-490.0,0.00046575,60]
[368249316,1751071892848,-632.81,0.00046575,60]
[368249317,1751071892858,-1381.52,0.00046575,60]
[368249318,1751071892867,-821.19,0.00046575,60]
[368249319,1751071892876,-490.0,0.00046575,60]
[368249320,1751071892885,-980.59,0.00046575,60]
[368249321,1751071892895,-490.0,0.00046575,60]
[368249322,1751071892905,-701.16,0.00046575,60]
[368249323,1751071892914,-490.0,0.00046575,60]
[368249324,1751071892923,-1101.82,0.00046575,60]
[368249325,1751071892932,-490.0,0.00046575,60]
[368249326,1751071892942,-489.59,0.00046575,60]
[368249327,1751071892952,-492.8,0.00046575,60]
[368249328,1751071892962,-1389.59,0.00046575,60]
[368249329,1751071892971,-761.04,0.00046575,60]
[368249330,1751071892982,-2742.88,0.00046575,60]
[368249331,1751071892994,-3633.8,0.00046575,60]
[368249332,1751071893003,-631.21,0.00046575,60]
[368249333,1751071893013,-560.29,0.00046575,60]
[368249334,1751071893022,-1621.27,0.00046575,60]
[368249335,1751071893032,-490.0,0.00046575,60]
[368249336,1751071893041,-1119.72,0.00046575,60]
[368249337,1751071893051,-528.93,0.00046575,60]
[368249338,1751071893061,-1055.73,0.00046575,60]
[368249339,1751071893071,-1270.62,0.00046575,60]
[368249340,1751071893081,-293.44,0.00046575,60]
[368249341,1751071893090,-518.5,0.00046575,120]
[368249342,1751071893100,-201.47,0.00046575,60]
[368249343,1751071893109,-3883.34,0.00046575,60]
[368249344,1751071893119,-797.91,0.00046575,60]
[368249345,1751071893128,-881.48,0.00046575,60]
[368249346,1751071893138,-490.0,0.00046575,60]
[368249347,1751071893147,-564.31,0.00046575,60]
[368249348,1751071893157,-960.84,0.00046575,60]
[368249349,1751071893167,-544.38,0.00046575,60]
[368249350,1751071893176,-819.67,0.00046575,60]
[368249351,1751071893186,-548.79,0.00046575,60]
[368249352,1751071893196,-490.0,0.00046575,60]
[368249353,1751071893206,-490.0,0.00046575,60]
[368249354,1751071893218,-490.0,0.00046575,60]
[368249355,1751071893228,-877.78,0.00046575,60]
[368249356,1751071893238,-519.68,0.00046575,60]
[368249357,1751071893247,-499.03,0.00046575,60]
[368249358,1751071893258,-1100.02,0.00046575,60]
[368249359,1751071893268,-1040.49,0.00046575,60]
[368249360,1751071893278,-942.77,0.00046575,60]
[368249361,1751071893290,-953.56,0.00046575,60]
[368249362,1751071893301,-1086.04,0.00046575,60]
[368249363,1751071893311,-490.0,0.00046575,60]
[368249364,1751071893321,-6952.88,0.00046575,60]
[368249365,1751071893330,-531.35,0.00046575,60]
[368249366,1751071893340,-1825.19,0.00046575,60]
[368249367,1751071893349,-551.06,0.00046575,60]
[368249368,1751071893359,-1040.65,0.00046575,60]
[368249369,1751071893368,-2110.0,0.00046575,30]
[368249370,1751071893378,-551.92,0.00046575,60]
[368249371,1751071893388,-1592.1,0.00046575,60]
[368249372,1751071893397,-990.34,0.00046575,60]
[368249373,1751071893407,-490.0,0.00046575,60]
[368249374,1751071893416,-511.18,0.00046575,60]
[368249375,1751071893425,-660.58,0.00046575,60]
[368249376,1751071893435,-899.19,0.00046575,60]
[368249377,1751071893444,-554.3,0.00046575,60]
[368249378,1751071893455,-548.05,0.00046575,60]
[368249379,1751071893464,-490.0,0.00046575,60]
[368249380,1751071893474,-490.0,0.00046575,60]
[368249381,1751071893484,-490.0,0.00046575,60]
[368249382,1751071893494,-116331.36,0.00046575,60]
[368249383,1751071893504,-490.0,0.00046575,60]
[368249384,1751071893515,-490.0,0.00046575,60]
[368249385,1751071893525,-896.07,0.00046575,60]
[368249386,1751071893534,-774.82,0.00046575,60]
[368249387,1751071893545,-1205.17,0.00046575,60]
[368249388,1751071893555,-787.73,0.00046575,60]
[368249389,1751071893564,-1755.56,0.00046575,60]
[368249390,1751071893575,-490.0,0.00046575,60]
[368249391,1751071893585,-1776.88,0.00046575,60]
[368249392,1751071893594,-497.76,0.00046575,60]
[368249393,1751071893604,-490.0,0.00046575,60]
[368249394,1751071893614,-490.0,0.00046575,60]
[368249395,1751071893624,-850.04,0.00046575,60]
[368249396,1751071893635,-490.0,0.00046575,60]
[368249397,1751071893644,-1470.22,0.00046575,60]
[368249398,1751071893654,-547.95,0.00046575,60]
[368249399,1751071893665,-490.0,0.00046575,60]
[368249400,1751071893675,-906.79,0.00046575,60]
[368249401,1751071893685,-159.095478,0.00046575,60]
[368249402,1751071893696,-656.99,0.00046575,60]
[368249403,1751071893705,-561.17,0.00046575,60]
[368249404,1751071893716,-532.35,0.00046575,60]
[368249405,1751071893726,-2168.75,0.00046575,60]
[368249406,1751071893736,-490.0,0.00046575,60]
[368249407,1751071893745,-1280.03,0.00046575,60]
[368249408,1751071893755,-490.0,0.00046575,60]
[368249409,1751071893764,-558.63,0.00046575,60]
[368249410,1751071893775,-165.936068,0.00046575,60]
[368249411,1751071893784,-923.38,0.00046575,60]
[368249412,1751071893794,-490.0,0.00046575,60]
[368249413,1751071893803,-1132.38,0.00046575,60]
[368249414,1751071893814,-490.0,0.00046575,60]
[368249415,1751071893824,-681.77,0.00046575,60]
[368249416,1751071893834,-490.0,0.00046575,60]
[368249417,1751071893844,-1998.82,0.00046575,60]
[368249418,1751071893855,-668.11,0.00046575,60]
[368249419,1751071893865,-716.54,0.00046575,60]
[368249420,1751071893876,-633.4,0.00046575,60]
[368249421,1751071893885,-490.0,0.00046575,60]
[368249422,1751071893894,-1819.64,0.00046575,60]
[368249423,1751071893903,-878.36,0.00046575,60]
[368249424,1751071893913,-4700.89,0.00046575,60]
[368249425,1751071893922,-490.0,0.00046575,60]
[368249426,1751071893932,-742.7,0.00046575,60]
[368249427,1751071893941,-865.33,0.00046575,60]
[368249428,1751071893951,-490.0,0.00046575,60]
[368249429,1751071893961,-490.0,0.00046575,60]
[368249430,1751071893971,-645.35,0.00046575,60]
[368249431,1751071893981,-634.14,0.00046575,60]
[368249432,1751071893991,-1740.41,0.00046575,60]
[368249433,1751071894000,-3297.07,0.00046575,120]
[368249434,1751071894010,-490.0,0.00046575,60]
[368249435,1751071894019,-1968.42,0.00046575,14]
[368249436,1751071894028,-513.85,0.00046575,60]
[368249437,1751071894039,-490.0,0.00046575,60]
[368249438,1751071894048,-2452.13,0.00046575,60]
[368249439,1751071894058,-654.89,0.00046575,60]
[368249440,1751071894067,-763.1,0.00046575,60]
[368249441,1751071894077,-573.87,0.00046575,60]
[368249442,1751071894087,-948.87,0.00046575,60]
[368249443,1751071894096,-538.32,0.00046575,60]
[368249444,1751071894105,-492.97,0.00046575,60]
[368249445,1751071894115,-490.0,0.00046575,60]
[368249446,1751071894124,-722.82,0.00046575,60]
[368249447,1751071894134,-490.0,0.00046575,60]
[368249448,1751071894144,-742.09,0.00046575,60]
[368249449,1751071894155,-1684.21,0.00046575,60]
[368249450,1751071894164,-1592.37,0.00046575,60]
[368249451,1751071894174,-520.76,0.00046575,60]
[368249452,1751071894184,-490.0,0.00046575,60]
[368249453,1751071894194,-1085.58,0.00046575,60]
[368249454,1751071894205,-592.17,0.00046575,60]
[368249455,1751071894217,-717.14,0.00046575,60]
[368249456,1751071894227,-2828.04,0.00046575,60]
[368249457,1751071894237,-588.68,0.00046575,60]
[368249458,1751071894246,-490.0,0.00046575,60]
[368249459,1751071894256,-2351.28,0.00046575,60]
[368249460,1751071894266,-490.0,0.00046575,60]
[368249461,1751071894275,-1128.63,0.00046575,60]
[368249462,1751071894285,-552.93488389,0.00046575,60]
[368249463,1751071894294,-490.0,0.00046575,60]
[368249464,1751071894304,-490.0,0.00046575,60]
[368249465,1751071894314,-490.0,0.00046575,60]
[368249466,1751071894323,-500.0,0.00046575,120]
[368249467,1751071894333,-168.0,0.00046589,2]
[368249468,1751071894345,-19840.9675905,0.00046595,2]
[368249469,1751071894356,-178076.3214708,0.00046595,2]
[368249470,1751071894366,-5185.5765327,0.00046595,2]
[368249471,1751071894375,-152.0,0.00046597,4]
[368249472,1751071894385,-500.0,0.00046627,60]
[368249473,1751071894395,-500.0,0.00046627,60]
[368249474,1751071894404,-500.0,0.00046627,60]
[368249475,1751071894414,-150.0,0.00046627,60]
[368249476,1751071894423,-500.0,0.00046627,60]
[368249477,1751071894432,-150.0,0.00046627,60]
[368249478,1751071894442,-500.0,0.00046627,60]
[368249479,1751071894452,-500.0,0.00046627,60]
[368249480,1751071894461,-150.0,0.00046627,60]
[368249481,1751071894471,-500.0,0.00046627,60]
[368249482,1751071894480,-500.0,0.00046627,60]
[368249483,1751071894490,-150.0,0.00046627,60]
[368249484,1751071894500,-500.0,0.00046627,60]